fUST/lending_fUST_20250121
["ID","MTS","AMOUNT","RATE_DAILY","PERIOD"]
[349835291,1737456633155,-500.0,0.00022191,3]
[349835293,1737456633165,-1107.64,0.00022191,3]
[349835295,1737456633175,-500.0,0.00022191,3]
[349835297,1737456633186,-376.51238757,0.00022191,3]
[349835299,1737456633196,-500.0,0.00022191,3]
[349835302,1737456633207,-500.0,0.00022191,3]
[349835303,1737456633216,-500.0,0.00022191,3]
[349835305,1737456633226,-500.0,0.00022191,3]
[349835307,1737456633236,-882.23,0.00022191,3]
[349835309,1737456633245,-602.85,0.00022191,3]
[349835312,1737456633255,-500.0,0.00022191,3]
[349835314,1737456633265,-500.0,0.00022191,3]
[349835316,1737456633276,-1011.65,0.00022191,3]
[349835318,1737456633286,-647.59972732,0.0002221,3]
[349835320,1737456633296,-647.59972732,0.00022314,3]
[349835322,1737456633306,-1101.1,0.00022328,3]
[349835324,1737456633315,-500.0,0.00022328,3]
[349835326,1737456633325,-1397.24,0.00022328,3]
[349835328,1737456633336,-915.59,0.00022328,3]
[349835330,1737456633346,-1050.38,0.00022328,3]
[349835332,1737456633355,-593.72,0.00022328,3]
[349835334,1737456633365,-500.0,0.00022328,3]
[349835336,1737456633375,-1107.64,0.00022328,3]
[349835338,1737456633384,-500.0,0.00022328,3]
[349835339,1737456633394,-500.0,0.00022328,3]
[349835341,1737456633403,-500.0,0.00022328,3]
[349835344,1737456633413,-500.0,0.00022328,3]
[349835346,1737456633423,-882.23,0.00022328,3]
[349835348,1737456633432,-602.85,0.00022328,3]
[349835350,1737456633442,-500.0,0.00022328,3]
[349835352,1737456633452,-500.0,0.00022328,3]
[349835354,1737456633462,-1011.65,0.00022328,3]
[349835356,1737456633471,-647.59972732,0.00022417,3]
[349835358,1737456633481,-1101.1,0.00022465,3]
[349835360,1737456633490,-500.0,0.00022465,3]
[349835362,1737456633499,-1397.24,0.00022465,3]
[349835364,1737456633509,-915.59,0.00022465,3]
[349835366,1737456633518,-1050.38,0.00022465,3]
[349835368,1737456633527,-500.0,0.00022465,3]
[349835382,1737456633646,-593.72,0.00022465,3]
[349835384,1737456633657,-1107.64,0.00022465,3]
[349835386,1737456633667,-500.0,0.00022465,3]
[349835388,1737456633676,-500.0,0.00022465,3]
[349835390,1737456633686,-500.0,0.00022465,3]
[349835392,1737456633696,-500.0,0.00022465,3]
[349835394,1737456633707,-882.23,0.00022465,3]
[349835396,1737456633717,-602.85,0.00022465,3]
[349835398,1737456633727,-500.0,0.00022465,3]
[349835400,1737456633736,-500.0,0.00022465,3]
[349835402,1737456633746,-1011.65,0.00022465,3]
[349835404,1737456633755,-182.219,0.00022482,2]
[349835406,1737456633765,-500.0,0.00022482,3]
[349835408,1737456633774,-500.0,0.00022482,3]
[349835410,1737456633783,-500.0,0.00022482,3]
[349835412,1737456633792,-500.0,0.00022482,3]
[349835414,1737456633806,-500.0,0.00022482,3]
[349835416,1737456633816,-500.0,0.00022482,3]
[349835418,1737456633825,-500.0,0.00022482,3]
[349835420,1737456633836,-500.0,0.00022482,3]
[349835421,1737456633847,-500.0,0.00022482,3]
[349835423,1737456633857,-500.0,0.00022482,3]
[349835425,1737456633867,-500.0,0.00022482,3]
[349835427,1737456633878,-500.0,0.00022482,3]
[349835430,1737456633888,-500.0,0.00022482,3]
[349835432,1737456633899,-500.0,0.00022482,3]
[349835434,1737456633910,-500.0,0.00022482,3]
[349835436,1737456633919,-500.0,0.00022482,3]
[349835438,1737456633928,-500.0,0.00022482,3]
[349835440,1737456633938,-500.0,0.00022482,3]
[349835442,1737456633947,-500.0,0.00022482,3]
[349835444,1737456633957,-500.0,0.00022482,3]
[349835446,1737456633966,-500.0,0.00022482,3]
[349835448,1737456633976,-500.0,0.00022482,3]
[349835450,1737456633986,-500.0,0.00022482,3]
[349835452,1737456633996,-562.37,0.00022482,3]
[349835454,1737456634008,-500.0,0.00022482,3]
[349835456,1737456634017,-500.0,0.00022482,3]
[349835458,1737456634027,-1708.88,0.00022482,3]
[349835460,1737456634038,-500.0,0.00022482,3]
[349835462,1737456634047,-500.0,0.00022482,2]
[349835464,1737456634057,-500.0,0.00022482,3]
[349835466,1737456634066,-500.0,0.00022482,3]
[349835468,1737456634076,-500.0,0.00022482,3]
[349835470,1737456634087,-500.0,0.00022482,3]
[349835472,1737456634097,-500.0,0.00022482,3]
[349835474,1737456634107,-500.0,0.00022482,3]
[349835476,1737456634117,-500.0,0.00022482,3]
[349835478,1737456634126,-1388.01,0.00022482,3]
[349835480,1737456634136,-895.36,0.00022482,3]
[349835482,1737456634145,-500.0,0.00022482,3]
[349835484,1737456634155,-835.62,0.00022482,3]
[349835486,1737456634165,-500.0,0.00022482,3]
[349835488,1737456634175,-659.1,0.00022482,3]
[349835490,1737456634184,-500.0,0.00022482,3]
[349835492,1737456634193,-500.0,0.00022482,3]
[349835494,1737456634202,-500.0,0.00022482,3]
[349835496,1737456634212,-500.0,0.00022482,3]
[349835498,1737456634223,-500.0,0.00022482,3]
[349835500,1737456634234,-500.0,0.00022482,3]
[349835502,1737456634244,-500.0,0.00022482,3]
[349835504,1737456634254,-500.0,0.00022482,3]
[349835506,1737456634264,-531.11,0.00022482,3]
[349835508,1737456634273,-500.0,0.00022482,3]
[349835510,1737456634283,-500.0,0.00022482,3]
[349835512,1737456634292,-500.0,0.00022482,3]
[349835514,1737456634302,-439.91707984,0.00022482,3]
[349835516,1737456634312,-500.0,0.00022482,3]
[349835518,1737456634321,-500.0,0.00022482,3]
[349835520,1737456634332,-8353.47,0.00022482,3]
[349835522,1737456634342,-500.0,0.00022482,3]
[349835524,1737456634352,-500.0,0.00022482,3]
[349835526,1737456634361,-500.0,0.00022482,3]
[349835528,1737456634371,-500.0,0.00022482,3]
[349835530,1737456634381,-500.0,0.00022482,3]
[349835532,1737456634390,-500.0,0.00022482,3]
[349835533,1737456634400,-500.0,0.00022482,3]
[349835535,1737456634410,-500.0,0.00022482,3]
[349835537,1737456634420,-500.0,0.00022482,3]
[349835539,1737456634430,-228.43458052,0.00022482,3]
[349835844,1737456638059,-442.54328143,0.00021917,3]
[349835846,1737456638073,-57.45671857,0.00021917,3]
[349835848,1737456638086,-563.54,0.00021917,3]
[349835851,1737456638098,-1637.67,0.00021917,3]
[349835853,1737456638110,-563.54,0.00022054,3]
[349835855,1737456638121,-757.52075722,0.00022054,3]
[349835858,1737456638142,-794.7196742,0.00022054,3]
[349835860,1737456638158,-85.42956858,0.00022054,3]
[349835863,1737456638171,-563.54,0.00022191,3]
[349835865,1737456638183,-1637.67,0.00022191,3]
[349835867,1737456638194,-563.54,0.00022328,3]
[349835870,1737456638210,-1637.67,0.00022328,3]
[349835872,1737456638221,-563.54,0.00022465,3]
[349835874,1737456638233,-271.56541948,0.00022482,3]
[349835876,1737456638245,-500.0,0.00022482,3]
[349835879,1737456638257,-972.64,0.00022482,3]
[349835881,1737456638268,-500.0,0.00022482,3]
[349835883,1737456638278,-500.0,0.00022482,3]
[349835885,1737456638289,-500.0,0.00022482,3]
[349835886,1737456638300,-500.0,0.00022482,3]
[349835887,1737456638311,-500.0,0.00022482,3]
[349835888,1737456638322,-500.0,0.00022482,3]
[349835889,1737456638332,-500.0,0.00022482,3]
[349835890,1737456638343,-500.0,0.00022482,3]
[349835891,1737456638354,-3876.61886908,0.00022482,3]
[349835892,1737456638367,-9686.22113092,0.00022482,3]
[349835893,1737456638378,-500.0,0.00022482,3]
[349835894,1737456638388,-500.0,0.00022482,3]
[349835895,1737456638399,-500.0,0.00022483,3]
[349835896,1737456638410,-500.0,0.00022483,3]
[349835897,1737456638422,-500.0,0.00022483,3]
[349835898,1737456638433,-275.3440797,0.00022483,3]
[349835899,1737456638444,-500.0,0.00022483,3]
[349835900,1737456638454,-500.0,0.00022483,3]
[349835901,1737456638465,-111.65013628,0.00022483,3]
[349836083,1737456641093,-1637.67,0.00022465,3]
[349836085,1737456641102,-596.86,0.00022482,3]
[349836087,1737456641112,-2862.3500474,0.00022482,3]
[349836120,1737456641407,-84.5599526,0.00022482,3]
[349836122,1737456641417,-388.34986372,0.00022483,3]
[349836124,1737456641426,-500.0,0.00022483,3]
[349836126,1737456641435,-500.0,0.00022483,3]
[349836128,1737456641444,-500.0,0.00022483,3]
[349836130,1737456641453,-500.0,0.00022483,3]
[349836132,1737456641463,-500.0,0.00022483,3]
[349836134,1737456641472,-500.0,0.00022483,3]
[349836136,1737456641481,-500.0,0.00022483,3]
[349836138,1737456641490,-500.0,0.00022483,3]
[349836140,1737456641499,-500.0,0.00022483,3]
[349836142,1737456641509,-500.0,0.00022483,3]
[349836144,1737456641518,-500.0,0.00022483,3]
[349836146,1737456641527,-500.0,0.00022483,3]
[349836148,1737456641536,-500.0,0.00022483,3]
[349836150,1737456641545,-500.0,0.00022483,3]
[349836152,1737456641554,-500.0,0.00022483,3]
[349836154,1737456641563,-500.0,0.00022483,3]
[349836156,1737456641572,-500.0,0.00022483,3]
[349836158,1737456641581,-500.0,0.00022483,3]
[349836160,1737456641591,-500.0,0.00022483,3]
[349836162,1737456641600,-500.0,0.00022483,3]
[349836164,1737456641609,-500.0,0.00022483,3]
[349836166,1737456641618,-500.0,0.00022483,3]
[349836168,1737456641627,-500.0,0.00022483,3]
[349836170,1737456641636,-500.0,0.00022483,3]
[349836172,1737456641644,-500.0,0.00022483,3]
[349836173,1737456641653,-500.0,0.00022483,3]
[349836175,1737456641662,-595.55,0.00022483,3]
[349836177,1737456641671,-500.0,0.00022483,3]
[349836179,1737456641681,-674.52,0.00022483,3]
[349836181,1737456641689,-500.0,0.00022483,3]
[349836183,1737456641699,-500.0,0.00022483,3]
[349836186,1737456641709,-500.0,0.00022483,3]
[349836188,1737456641719,-500.0,0.00022483,3]
[349836190,1737456641728,-500.0,0.00022483,3]
[349836192,1737456641737,-511.12507265,0.00022483,2]
[349836194,1737456641746,-500.0,0.00022483,3]
[349836196,1737456641755,-500.0,0.00022483,3]
[349836198,1737456641764,-500.0,0.00022483,3]
[349836200,1737456641773,-323.27832383,0.00022483,3]
[349836202,1737456641782,-559.22,0.00022483,3]
[349836204,1737456641791,-500.0,0.00022483,3]
[349836206,1737456641803,-156.5053507,0.00022521,2]
[349836208,1737456641812,-647.59972732,0.00022521,3]
[349836210,1737456641821,-256.85083416,0.00022531,2]
[349836212,1737456641830,-537.32431635,0.00022574,3]
[349836214,1737456641840,-500.0,0.00022574,3]
[349836216,1737456641850,-199.50384633,0.00022574,3]
[349836218,1737456641859,-500.0,0.00022574,3]
[349836220,1737456641868,-533.18,0.00022574,3]
[349836221,1737456641882,-500.0,0.00022574,3]
[349836223,1737456641891,-500.0,0.00022574,3]
[349836226,1737456641901,-500.0,0.00022574,3]
[349836228,1737456641910,-500.0,0.00022574,3]
[349836230,1737456641919,-500.0,0.00022574,3]
[349836232,1737456641928,-500.0,0.00022574,3]
[349836234,1737456641937,-505.54601536,0.00022574,3]
[349836236,1737456641946,-500.0,0.00022574,3]
[349836238,1737456641954,-500.0,0.00022574,3]
[349836240,1737456641964,-500.0,0.00022574,3]
[349836242,1737456641973,-500.0,0.00022574,3]
[349836244,1737456641982,-500.0,0.00022574,3]
[349836246,1737456641992,-595.49,0.00022574,3]
[349836248,1737456642001,-500.0,0.00022574,3]
[349836250,1737456642010,-500.0,0.00022574,3]
[349836252,1737456642020,-500.0,0.00022574,3]
[349836254,1737456642029,-500.0,0.00022574,3]
[349836256,1737456642039,-500.0,0.00022574,3]
[349836258,1737456642048,-500.0,0.00022574,3]
[349836260,1737456642058,-500.0,0.00022574,3]
[349836262,1737456642067,-287.82197744,0.00022574,3]
[349836264,1737456642076,-343.522568,0.00022574,3]
[349836266,1737456642085,-500.0,0.00022574,3]
[349836268,1737456642095,-500.0,0.00022574,3]
[349836270,1737456642104,-187.2257504,0.00022574,3]
[349836272,1737456642113,-500.0,0.00022574,3]
[349836274,1737456642123,-4968.71,0.00022574,3]
[349836276,1737456642132,-500.0,0.00022574,3]
[349836278,1737456642141,-500.0,0.00022574,3]
[349836280,1737456642151,-500.0,0.00022574,3]
[349836282,1737456642160,-500.0,0.00022574,3]
[349836284,1737456642169,-633.83606751,0.00022574,3]
[349836286,1737456642178,-500.0,0.00022574,3]
[349836287,1737456642188,-500.0,0.00022574,3]
[349836290,1737456642197,-500.84,0.00022574,3]
[349836292,1737456642208,-1101.1,0.00022602,3]
[349836294,1737456642218,-500.0,0.00022602,3]
[349836296,1737456642227,-1397.24,0.00022602,3]
[349836298,1737456642237,-915.59,0.00022602,3]
[349836300,1737456642247,-1050.38,0.00022602,3]
[349836301,1737456642256,-500.0,0.00022602,3]
[349836304,1737456642265,-593.72,0.00022602,3]
[349836306,1737456642274,-1107.64,0.00022602,3]
[349836308,1737456642283,-500.0,0.00022602,3]
[349836310,1737456642294,-500.0,0.00022602,3]
[349836312,1737456642303,-500.0,0.00022602,3]
[349836314,1737456642312,-882.23,0.00022602,3]
[349836316,1737456642322,-602.85,0.00022602,3]
[349836318,1737456642331,-500.0,0.00022602,3]
[349836320,1737456642340,-500.0,0.00022602,3]
[349836322,1737456642350,-1011.65,0.00022602,3]
[349836324,1737456642359,-563.54,0.00022602,3]
[349836326,1737456642369,-1637.67,0.00022602,3]
[349836328,1737456642378,-500.0,0.00022619,3]
[349836330,1737456642387,-640.92044849,0.00022619,3]
[349836332,1737456642397,-500.0,0.00022619,3]
[349836335,1737456642406,-500.0,0.00022619,3]
[349836337,1737456642415,-501.38642966,0.00022619,3]
[349836339,1737456642425,-459.63412328,0.00022619,3]
[349836725,1737456646007,-353.8262533,0.00022,2]
[349836727,1737456646017,-4301.8727567,0.00022258,2]
[349841671,1737457038321,203.386848,0.00013973,2]
[349841672,1737457205703,1337.72567649,0.0002,2]
[349841673,1737457208249,-200.0,0.0002,2]
[349841680,1737457355619,3000.0,0.00024,120]
[349841681,1737457367707,3000.0,0.00024,120]
[349841682,1737457557317,3000.0,0.00024,120]
[349842257,1737457838130,-3462.27432351,0.00019406,2]
[349842259,1737457838140,-644.06143211,0.00020103,2]
[349842261,1737457838149,-203.386848,0.00020447,2]
[349842263,1737457838159,-300.0,0.00020477,2]
[349842265,1737457838169,-17417.6142037,0.00020478,2]
[349842267,1737457838179,-500.0,0.00020613,2]
[349842269,1737457838189,-1208.0,0.000208,2]
[349842271,1737457838203,-168.3707746,0.00020819,2]
[349842273,1737457838212,-1069.0753712,0.00021093,2]
[349842275,1737457838221,-204.129156,0.00021771,2]
[349842277,1737457838232,-200.66541974,0.00021817,2]
[349842279,1737457838243,-10220.23167427,0.00021882,2]
[349842281,1737457838254,-233.22,0.000219,2]
[349842283,1737457838263,-513.83899846,0.000219,2]
[349842285,1737457838275,-500.0,0.00021917,3]
[349842287,1737457838286,-500.0,0.00021917,3]
[349842289,1737457838297,-500.0,0.00021917,3]
[349842291,1737457838307,-500.0,0.00021917,3]
[349842293,1737457838317,-500.0,0.00021917,3]
[349842295,1737457838327,-500.0,0.00021917,3]
[349842298,1737457838338,-484.12787526,0.00021917,3]
[349842300,1737457838347,-500.0,0.00021917,3]
[349842302,1737457838356,-500.0,0.00021917,3]
[349842304,1737457838366,-500.0,0.00021917,3]
[349842306,1737457838376,-504.27742,0.00021917,3]
[349842308,1737457838386,-500.0,0.00021917,3]
[349842310,1737457838395,-500.0,0.00021917,3]
[349842312,1737457838405,-570.74,0.00021917,3]
[349842314,1737457838414,-646.41,0.00021917,3]
[349842315,1737457838423,-377.37174248,0.00021917,3]
[349842318,1737457838434,-500.0,0.00021917,3]
[349842320,1737457838444,-500.0,0.00021917,3]
[349842321,1737457838453,-500.0,0.00021917,3]
[349842323,1737457838463,-500.0,0.00021917,3]
[349842326,1737457838473,-500.0,0.00021917,3]
[349842328,1737457838483,-500.0,0.00021917,3]
[349842329,1737457838493,-500.0,0.00021917,3]
[349842332,1737457838503,-500.0,0.00021917,3]
[349842334,1737457838513,-500.0,0.00021917,3]
[349842336,1737457838522,-500.0,0.00021917,3]
[349842338,1737457838532,-500.0,0.00021917,3]
[349842340,1737457838541,-500.0,0.00021917,3]
[349842342,1737457838550,-500.0,0.00021917,2]
[349842344,1737457838562,-500.0,0.00021917,3]
[349842346,1737457838571,-500.0,0.00021917,3]
[349842348,1737457838579,-500.0,0.00021917,3]
[349842350,1737457838589,-500.0,0.00021917,3]
[349842352,1737457838598,-500.0,0.00021917,3]
[349842354,1737457838608,-500.0,0.00021917,3]
[349842356,1737457838617,-507.72279973,0.00021917,3]
[349842358,1737457838628,-292.47500306,0.00021917,3]
[349842359,1737457838638,-175.86754532,0.00021917,3]
[349842361,1737457838647,-500.0,0.00021917,3]
[349842363,1737457838656,-500.0,0.00021917,3]
[349842365,1737457838666,-500.0,0.00021917,3]
[349842367,1737457838676,-500.0,0.00021917,3]
[349842369,1737457838685,-500.0,0.00021917,3]
[349842371,1737457838695,-500.0,0.00021917,3]
[349842373,1737457838704,-500.0,0.00021917,3]
[349842375,1737457838713,-500.0,0.00021917,3]
[349842378,1737457838723,-500.0,0.00021917,3]
[349842380,1737457838732,-500.0,0.00021917,3]
[349842381,1737457838741,-500.0,0.00021917,3]
[349842383,1737457838751,-169.76609826,0.00021917,3]
[349842385,1737457838760,-500.0,0.00021917,3]
[349842387,1737457838770,-500.0,0.00021917,3]
[349842390,1737457838779,-500.0,0.00021917,3]
[349842392,1737457838789,-500.0,0.00021917,3]
[349842394,1737457838799,-500.0,0.00021917,3]
[349842396,1737457838809,-500.0,0.00021917,3]
[349842398,1737457838818,-500.0,0.00021917,3]
[349842400,1737457838827,-500.0,0.00021917,3]
[349842402,1737457838837,-604.74,0.00021917,3]
[349842404,1737457838847,-470.24658284,0.00021917,3]
[349842406,1737457838860,-29.75341716,0.00021917,3]
[349842408,1737457838870,-500.0,0.00021917,3]
[349842410,1737457838881,-296.12158284,0.00021917,3]
[349842413,1737457838894,-215.39044374,0.00021917,3]
[349842414,1737457838905,-479.78604632,0.00021917,3]
[349842418,1737457838932,-20.21395368,0.00021917,3]
[349842420,1737457838942,-500.0,0.00021917,3]
[349842422,1737457838952,-342.76057388,0.00021917,3]
[349842424,1737457838964,-157.23942612,0.00021917,3]
[349842427,1737457838974,-500.0,0.00021917,2]
[349842429,1737457838984,-500.0,0.00021917,3]
[349842431,1737457838994,-500.0,0.00021917,3]
[349842433,1737457839003,-500.0,0.00021917,3]
[349842435,1737457839012,-500.0,0.00021917,3]
[349842437,1737457839021,-500.0,0.00021917,3]
[349842438,1737457839031,-500.0,0.00021917,3]
[349842440,1737457839040,-535.68786045,0.00021917,3]
[349842442,1737457839050,-259.91751507,0.00021917,3]
[349842445,1737457839060,-500.0,0.00021917,3]
[349842446,1737457839070,-500.0,0.00021917,3]
[349842448,1737457839080,-500.0,0.00021917,3]
[349842450,1737457839089,-655.62,0.00021917,3]
[349842453,1737457839099,-408.77429264,0.00021917,3]
[349842455,1737457839113,-91.22570736,0.00021917,3]
[349842457,1737457839122,-528.64664937,0.00021917,3]
[349842459,1737457839134,-51.02502876,0.00021917,3]
[349842582,1737457840338,-448.97497124,0.00021917,3]
[349842584,1737457840347,-1007.41632512,0.00021917,3]
[349842850,1737457843270,-1427.36870671,0.00021698,2]
[349842852,1737457843279,-500.0,0.00021917,3]
[349842854,1737457843290,-500.0,0.00021917,3]
[349842855,1737457843299,-287.64815953,0.00021917,3]
[349842871,1737457843476,-212.35184047,0.00021917,3]
[349842873,1737457843485,-821.17624768,0.00021917,3]
[349842874,1737457843497,-140.45375232,0.00021917,3]
[349842876,1737457843506,-500.0,0.00021917,3]
[349842878,1737457843516,-284.94781053,0.00021917,3]
[349842880,1737457843528,-215.05218947,0.00021917,3]
[349842882,1737457843537,-500.0,0.00021917,3]
[349842884,1737457843547,-500.0,0.00021917,3]
[349842885,1737457843556,-508.98,0.00021917,3]
[349842887,1737457843566,-500.0,0.00021917,3]
[349842889,1737457843575,-500.0,0.00021917,3]
[349842891,1737457843584,-596.8340198,0.00021917,3]
[349842894,1737457843594,-500.0,0.00021917,3]
[349842895,1737457843603,-500.0,0.00021917,3]
[349842897,1737457843612,-500.0,0.00021917,3]
[349842899,1737457843621,-154.81148519,0.00021917,3]
[349842901,1737457843631,-500.0,0.00021917,3]
[349842903,1737457843643,-515.26188312,0.00021917,3]
[349842905,1737457843652,-511.9068935,0.00021917,3]
[349842906,1737457843661,-500.0,0.00021917,3]
[349842908,1737457843671,-8005.4,0.00021917,3]
[349842910,1737457843680,-500.0,0.00021917,3]
[349842912,1737457843690,-506.97391184,0.00021917,3]
[349842914,1737457843699,-500.0,0.00021917,3]
[349842915,1737457843708,-500.0,0.00021917,3]
[349842917,1737457843718,-500.0,0.00021917,3]
[349842919,1737457843727,-500.0,0.00021917,3]
[349842921,1737457843736,-500.0,0.00021917,3]
[349842923,1737457843745,-500.0,0.00021917,3]
[349842924,1737457843755,-500.0,0.00021917,3]
[349842926,1737457843764,-500.0,0.00021917,3]
[349842928,1737457843773,-500.0,0.00021917,3]
[349842930,1737457843782,-500.0,0.00021917,3]
[349842932,1737457843791,-500.0,0.00021917,3]
[349842934,1737457843800,-4965.06,0.00021917,3]
[349842935,1737457843810,-309.88502874,0.00021917,3]
[349842937,1737457843820,-503.08021678,0.00021917,3]
[349842939,1737457843829,-500.0,0.00021917,3]
[349842941,1737457843839,-500.0,0.00021917,3]
[349842942,1737457843848,-500.0,0.00021917,3]
[349842944,1737457843858,-500.0,0.00021917,3]
[349842946,1737457843867,-1216.07,0.00021917,3]
[349842948,1737457843877,-729.4,0.00021917,3]
[349842950,1737457843889,-500.0,0.00021917,3]
[349842952,1737457843899,-500.0,0.00021917,3]
[349842954,1737457843908,-500.0,0.00021917,3]
[349842955,1737457843917,-500.0,0.00021917,3]
[349842957,1737457843926,-500.0,0.00021917,3]
[349842959,1737457843935,-500.0,0.00021917,3]
[349842961,1737457843946,-500.0,0.00021917,3]
[349842963,1737457843956,-500.0,0.00021917,3]
[349842965,1737457843965,-987.16,0.00021917,3]
[349842966,1737457843975,-1070.51,0.00021917,3]
[349842968,1737457843985,-906.14,0.00021917,3]
[349842970,1737457843995,-500.0,0.00021917,3]
[349842972,1737457844005,-12.85865747,0.00021917,3]
[349843178,1737457846343,-487.14134253,0.00021917,3]
[349843180,1737457846353,-500.0,0.00021917,3]
[349843182,1737457846363,-500.0,0.00021917,3]
[349843184,1737457846372,-500.0,0.00021917,3]
[349843186,1737457846382,-528.81766839,0.00021917,3]
[349843188,1737457846394,-500.0,0.00021917,3]
[349843190,1737457846404,-501.69453166,0.00021917,3]
[349843192,1737457846413,-500.0,0.00021917,3]
[349843194,1737457846422,-500.0,0.00021917,3]
[349843196,1737457846431,-500.0,0.00021917,3]
[349843198,1737457846442,-500.0,0.00021917,3]
[349843200,1737457846452,-783.54,0.00021917,3]
[349843202,1737457846461,-500.0,0.00021917,3]
[349843204,1737457846471,-500.0,0.00021917,3]
[349843206,1737457846481,-500.0,0.00021917,3]
[349843208,1737457846490,-500.0,0.00021917,3]
[349843210,1737457846500,-500.0,0.00021917,3]
[349843212,1737457846510,-500.0,0.00021917,3]
[349843215,1737457846521,-500.0,0.00021917,3]
[349843216,1737457846531,-888.74,0.00021917,3]
[349843219,1737457846541,-1587.24,0.00021917,3]
[349843221,1737457846551,-500.0,0.00021917,3]
[349843223,1737457846560,-500.0,0.00021917,3]
[349843226,1737457846570,-500.0,0.00021917,3]
[349843228,1737457846579,-500.0,0.00021917,3]
[349843230,1737457846588,-500.0,0.00021917,3]
[349843232,1737457846598,-500.0,0.00021917,3]
[349843234,1737457846609,-13489.34,0.00021917,3]
[349843237,1737457846619,-500.0,0.00021917,3]
[349843240,1737457846629,-500.0,0.00021917,3]
[349843243,1737457846638,-500.0,0.00021917,3]
[349843246,1737457846647,-505.59250195,0.00021917,3]
[349843249,1737457846657,-500.0,0.00021917,3]
[349843252,1737457846667,-571.99,0.00021917,3]
[349843254,1737457846677,-500.0,0.00021917,3]
[349843257,1737457846686,-500.0,0.00021917,3]
[349843260,1737457846695,-500.0,0.00021917,3]
[349843263,1737457846705,-500.0,0.00021917,3]
[349843266,1737457846714,-500.0,0.00021917,3]
[349843268,1737457846724,-500.0,0.00021917,3]
[349843270,1737457846733,-898.96,0.00021917,3]
[349843272,1737457846743,-530.66087987,0.00021917,2]
[349843274,1737457846752,-354.6651188,0.00021917,3]
[349843276,1737457846761,-500.0,0.00021917,3]
[349843278,1737457846770,-500.0,0.00021917,3]
[349843280,1737457846785,-500.0,0.00021917,3]
[349843282,1737457846795,-500.0,0.00021917,3]
[349843284,1737457846804,-3079.02,0.00021917,3]
[349843286,1737457846814,-835.8,0.00021917,3]
[349843288,1737457846823,-500.0,0.00021917,3]
[349843290,1737457846833,-500.0,0.00021917,3]
[349843292,1737457846842,-1437.07,0.00021917,3]
[349843294,1737457846852,-500.0,0.00021917,3]
[349843296,1737457846861,-320.157,0.0002204,2]
[349843298,1737457846870,-500.0,0.00022053,3]
[349843300,1737457846880,-500.0,0.00022053,3]
[349843302,1737457846891,-500.0,0.00022053,3]
[349843304,1737457846901,-500.0,0.00022053,3]
[349843306,1737457846915,-500.0,0.00022053,3]
[349843308,1737457846924,-399.38,0.00022053,3]
[349843310,1737457846933,-500.0,0.00022054,3]
[349843312,1737457846943,-500.0,0.00022054,3]
[349843314,1737457846952,-500.0,0.00022054,3]